bitfinex/quotes_SOLUSD_20250415
["timestamp","ask_amount","ask_price","bid_price","bid_amount"]
[1744746082660,0.063,127.95,127.91,10.13806555]
[1744746082962,0.063,127.95,127.92,10.13806555]
[1744746083759,7.87855295,127.95,127.92,10.13806555]
[1744746084057,0.063,127.95,127.93,10.13806555]
[1744746085144,0.063,127.95,127.93,15.83118929]
[1744746085952,0.063,127.95,127.92,15.83118929]
[1744746086262,0.063,127.95,127.93,15.83118929]
[1744746087660,0.063,127.95,127.92,15.83118929]
[1744746088959,0.063,127.95,127.93,15.83118929]
[1744746090761,0.063,127.95,127.92,15.83118929]
[1744746095163,0.063,127.95,127.93,15.83118929]
[1744746095353,0.063,127.95,127.94,15.83118929]
[1744746097363,0.063,127.95,127.94,23.78951468]
[1744746098243,0.063,127.95,127.94,44.01016354]
[1744746098441,0.03,127.96,127.95,0.14216157]
[1744746098641,0.03,127.96,127.95,27.41335086]
[1744746099867,0.03,127.96,127.95,35.22890381]
[1744746104380,0.03,127.96,127.95,27.41335086]
[1744746104682,0.03,127.96,127.95,27.27118929]
[1744746105178,0.03,127.96,127.95,21.56715649]
[1744746106578,0.03,127.96,127.95,29.38270944]
[1744746107579,0.03,127.96,127.95,21.56715649]
[1744746107761,0.03,127.96,127.95,11.44]
[1744746107962,16.67555649,127.96,127.92,243.78]
[1744746108174,10.12715649,127.95,127.92,255.2]
[1744746108563,7.81616382,127.94,127.92,255.2]
[1744746108958,6.5484,127.96,127.93,10.12715649]
[1744746109157,14.36382841,127.96,127.93,10.12715649]
[1744746111092,14.36382841,127.96,127.92,265.32715649]
[1744746113185,14.36382841,127.96,127.92,253.90715649]
[1744746113388,14.36382841,127.96,127.92,265.32715649]
[1744746114895,24.4909849,127.96,127.92,11.42]
[1744746115182,10.12715649,127.94,127.92,11.42]
[1744746115389,7.81677479,127.93,127.92,11.42]
[1744746115591,17.94393128,127.93,127.92,11.42]
[1744746116991,17.94393128,127.93,127.87,40.2169572]
[1744746117290,7.81921964,127.89,127.88,11.42]
[1744746118391,16.19425649,127.91,127.88,11.42]
[1744746118392,7.81860828,127.9,127.88,11.42]
[1744746118689,33.81709669,127.93,127.89,10.12715649]
[1744746118891,33.81709669,127.93,127.9,10.12715649]
[1744746119384,33.81709669,127.93,127.9,15.83817244]
[1744746119698,7.81709669,127.93,127.9,15.83817244]
[1744746120288,7.81709669,127.93,127.89,15.83817244]
[1744746123781,15.83817244,127.92,127.88,27.25817244]
[1744746124183,15.83817244,127.92,127.88,11.42]
[1744746125689,7.81799702,127.91,127.88,11.42]
[1744746127176,7.81799702,127.91,127.88,27.25817244]
[1744746127777,15.83817244,127.9,127.88,11.42]
[1744746129803,7.81921964,127.89,127.88,11.42]
[1744746129985,23.65739208,127.89,127.88,11.42]
[1744746130298,23.65739208,127.89,127.87,0.063]
[1744746131501,7.81921964,127.89,127.87,0.063]
[1744746132084,23.65739208,127.89,127.87,0.063]
[1744746132591,34.4878213,127.88,127.87,0.063]
[1744746132985,34.4878213,127.87,127.86,0.063]
[1744746133998,61.85937052,127.87,127.82,0.063]
[1744746134306,15.83817244,127.83,127.82,0.063]
[1744746134510,34.4878213,127.83,127.82,0.063]
[1744746136103,42.31071107,127.83,127.82,0.063]
[1744746140913,7.82288977,127.83,127.82,0.063]
[1744746142113,42.31071107,127.83,127.82,0.063]
[1744746146502,7.82227784,127.84,127.82,0.063]
[1744746146805,23.65922671,127.86,127.82,0.063]
[1744746147006,35.39080813,127.86,127.82,0.063]
[1744746147318,15.83817244,127.83,127.82,0.063]
[1744746147613,34.4878213,127.83,127.82,0.063]
[1744746149427,42.31071107,127.83,127.82,0.063]
[1744746153129,36.6293805,127.83,127.82,0.063]
[1744746155240,7.82288977,127.83,127.82,0.063]
[1744746156334,7.82227784,127.84,127.82,0.063]
[1744746157438,17.97911971,127.84,127.82,0.063]
[1744746158905,7.82227784,127.84,127.82,0.063]
[1744746160627,17.97911971,127.84,127.82,0.063]
[1744746160929,7.82227784,127.84,127.82,0.063]
[1744746161735,7.82166601,127.85,127.82,0.063]
[1744746162732,17.97850788,127.85,127.82,0.063]
[1744746163634,7.82166601,127.85,127.82,0.063]
[1744746166516,17.97850788,127.85,127.82,0.063]
[1744746167231,7.82166601,127.85,127.82,0.063]
[1744746169135,17.97850788,127.85,127.82,0.063]
[1744746170437,7.82166601,127.85,127.82,0.063]
[1744746171236,27.37583104,127.85,127.82,0.063]
[1744746171615,37.53267291,127.85,127.82,0.063]
[1744746173532,27.37583104,127.85,127.82,0.063]
[1744746173729,7.82166601,127.85,127.82,0.063]
[1744746174440,17.97850788,127.85,127.82,0.063]
[1744746177336,37.53267291,127.85,127.82,0.063]
[1744746177547,10.15684187,127.84,127.82,0.063]
[1744746178844,37.53267291,127.85,127.82,0.063]
[1744746179743,27.37583104,127.85,127.82,0.063]
[1744746179924,37.53267291,127.85,127.82,0.063]
[1744746180550,27.37583104,127.85,127.82,0.063]
[1744746181035,7.82166601,127.85,127.83,10.15684187]
[1744746182843,7.81983109,127.88,127.84,10.15684187]
[1744746183021,7.81983109,127.88,127.82,7.88642642]
[1744746183022,28.80649073,127.87,127.82,10.21984187]
[1744746183221,10.15684187,127.86,127.82,0.063]
[1744746184144,10.15684187,127.83,127.82,0.063]
[1744746186337,17.97973164,127.83,127.82,0.063]
[1744746187857,36.6293805,127.83,127.82,0.063]
[1744746189244,62.6293805,127.83,127.81,1e-08]
[1744746189444,10.15684187,127.82,127.81,1e-08]
[1744746191447,52.47253863,127.83,127.81,1e-08]
[1744746191651,10.15684187,127.82,127.81,1e-08]
[1744746193445,17.98034366,127.82,127.81,1e-08]
[1744746194657,10.15684187,127.86,127.81,10.15684188]
[1744746194849,7.82105427,127.86,127.82,10.15684187]
[1744746195030,7.82105427,127.86,127.84,10.15684187]
[1744746195556,7.82044263,127.87,127.84,10.15684187]
[1744746196845,7.82004238,127.88,127.86,10.15684187]
[1744746197047,7.82004238,127.88,127.85,10.15684187]
[1744746197757,55.67573009,127.91,127.87,10.15684187]
[1744746197946,18.67964886,127.92,127.88,10.15684187]
[1744746198132,28.83649073,127.92,127.87,10.15684187]
[1744746198561,54.83649073,127.92,127.87,10.15684187]
[1744746198735,0.03,127.92,127.89,10.15684187]
[1744746198934,0.03,127.92,127.9,10.15684187]
[1744746199153,0.03,127.92,127.89,10.15684187]
[1744746199838,0.03,127.92,127.88,11.4]
[1744746200055,0.03,127.92,127.89,10.15684187]
[1744746201161,0.03,127.92,127.9,10.15684187]
[1744746201746,0.03,127.92,127.91,10.15684187]
[1744746202843,7.34677479,127.93,127.91,10.15684187]
[1744746203761,7.81616382,127.94,127.91,10.15684187]
[1744746207264,7.81616382,127.94,127.91,21.53684187]
[1744746208157,0.03,127.96,127.93,10.15684187]
[1744746208756,0.03,127.96,127.92,10.15684187]
[1744746210664,10.18684187,127.96,127.91,23.04424187]
[1744746212069,10.18684187,127.96,127.92,10.15684187]
[1744746212939,10.18684187,127.96,127.91,23.04424187]
[1744746212940,17.97239482,127.95,127.91,23.04424187]
[1744746213144,10.15684187,127.93,127.91,11.38]
[1744746213346,36.15684187,127.92,127.87,13.0078]
[1744746213570,10.15684187,127.91,127.87,13.0078]
[1744746214072,36.15684187,127.92,127.87,23.16464187]
[1744746215469,7.81799702,127.91,127.87,23.16464187]
[1744746218060,7.81799702,127.91,127.88,10.15684187]
[1744746220375,7.81799702,127.91,127.87,23.16464187]
[1744746221767,7.81799702,127.91,127.87,13.0078]
[1744746221955,7.81799702,127.91,127.87,23.16464187]
[1744746223074,7.81799702,127.91,127.88,10.15684187]
[1744746223375,7.81767573,127.92,127.89,10.15684187]
[1744746223577,7.81677479,127.93,127.9,10.15684187]
[1744746223952,7.81677479,127.93,127.89,10.15684187]
[1744746225878,17.97361666,127.93,127.89,10.15684187]
[1744746227191,7.81677479,127.93,127.89,10.15684187]
[1744746232975,7.71677479,127.93,127.89,10.15684187]
[1744746237072,7.71677479,127.93,127.9,10.15684187]
[1744746239594,7.81555295,127.95,127.92,10.15684187]
[1744746239765,0.03,127.96,127.94,10.15684187]
[1744746240085,0.03,127.96,127.95,10.15684187]
[1744746240773,0.03,127.96,127.94,21.51684187]
[1744746242273,0.03,127.96,127.94,11.36]
[1744746245383,10.15684187,127.95,127.91,11.36]
[1744746247586,7.81616382,127.94,127.91,11.36]
[1744746247971,37.51341525,127.94,127.91,11.36]
[1744746248166,10.15684187,127.93,127.91,11.36]
[1744746248381,10.15684187,127.92,127.91,11.36]
[1744746249485,10.15684187,127.92,127.86,11.423]
[1744746249710,10.15684187,127.9,127.86,11.423]
[1744746249988,37.51983146,127.91,127.86,21.57984187]
[1744746251181,27.36298959,127.91,127.86,21.57984187]
[1744746251385,37.51983146,127.91,127.86,21.57984187]
[1744746252885,7.81769537,127.92,127.9,10.15684187]
[1744746253270,7.81677479,127.93,127.91,10.15684187]
[1744746253466,7.81677479,127.93,127.9,10.15684187]
[1744746254561,7.81677479,127.93,127.91,10.15684187]
[1744746255508,7.81677479,127.93,127.91,21.51684187]
[1744746255798,27.35504114,127.95,127.91,21.51684187]
[1744746259296,37.51188301,127.95,127.91,11.36]
[1744746259995,37.51188301,127.95,127.9,10.15684187]
[1744746261604,7.81555295,127.95,127.91,10.15684187]
[1744746262206,7.81555295,127.95,127.92,10.15684187]
[1744746265085,7.84494216,127.96,127.92,10.15684187]
[1744746265388,7.84494216,127.96,127.93,10.15684187]
[1744746267503,7.84494216,127.96,127.94,10.15684187]
[1744746267801,0.03,127.96,127.95,10.15684187]
[1744746268805,0.03,127.96,127.95,17.97239482]
[1744746269986,0.03,127.96,127.95,10.15684187]
[1744746270610,10.18684187,127.96,127.94,11.36]
[1744746270786,10.15684187,127.95,127.9,21.49684187]
[1744746271610,10.15684187,127.95,127.9,11.34]
[1744746271794,10.15684187,127.95,127.9,21.49684187]
[1744746273013,7.81616382,127.94,127.9,21.49684187]
[1744746274790,17.97300569,127.94,127.9,21.49684187]
[1744746276418,18.64964886,127.93,127.9,11.34]
[1744746276590,28.80649073,127.93,127.9,11.34]
[1744746277102,18.64964886,127.93,127.9,11.34]
[1744746277300,7.81616382,127.94,127.91,10.15684187]
[1744746277812,17.97300569,127.94,127.9,11.34]
[1744746278188,28.80649073,127.93,127.9,11.34]
[1744746278716,18.64964886,127.93,127.9,11.34]
[1744746279611,7.81738586,127.92,127.9,11.34]
[1744746279831,7.81738586,127.92,127.89,21.51684187]
[1744746281289,26.46668256,127.93,127.9,10.15684187]
[1744746281690,7.8170337,127.93,127.89,21.51684187]
[1744746285718,27.35657338,127.94,127.9,10.15684187]
[1744746286020,7.81616382,127.94,127.9,10.15684187]
[1744746286521,17.97300569,127.94,127.89,21.51684187]
[1744746287716,37.51341525,127.94,127.89,21.51684187]
[1744746289623,7.81616382,127.94,127.9,10.15684187]
[1744746291939,6.0334,127.96,127.93,10.15684187]
[1744746292103,0.03,127.96,127.95,10.15684187]
[1744746295135,0.03,127.96,127.94,11.34]
[1744746295429,0.03,127.96,127.94,21.49684187]
[1744746296203,10.18684187,127.96,127.94,11.34]
[1744746296406,10.18684187,127.96,127.92,10.15684187]
[1744746297208,10.18684187,127.96,127.91,21.49684187]
[1744746297935,28.80649073,127.95,127.91,11.34]
[1744746298138,7.81738586,127.92,127.89,11.34]
[1744746298431,7.81616382,127.94,127.91,10.15684187]
[1744746300415,17.97300569,127.94,127.89,21.49684187]
[1744746300814,17.97300569,127.94,127.89,11.34]
[1744746300815,36.66279073,127.93,127.89,11.34]
[1744746301009,26.50594886,127.93,127.89,21.49684187]
[1744746301209,7.81616382,127.94,127.9,10.15684187]
[1744746301438,7.81616382,127.94,127.91,10.15684187]
[1744746301618,7.81616382,127.94,127.9,10.15684187]
[1744746302207,7.81616382,127.94,127.91,10.15684187]
[1744746303708,0.03,127.96,127.92,10.15684187]
[1744746304325,7.84526469,127.96,127.92,10.15684187]
[1744746304529,36.65175542,127.96,127.92,10.15684187]
[1744746304743,36.65175542,127.96,127.91,10.15684187]
[1744746305539,26.49491355,127.96,127.91,10.15684187]
[1744746305739,18.00210656,127.96,127.91,10.15684187]
[1744746306036,36.65175542,127.96,127.91,10.15684187]
[1744746306245,10.15684187,127.95,127.9,0.14216157]
[1744746306427,10.15684187,127.95,127.91,10.15684187]
[1744746307244,7.81616382,127.94,127.91,10.15684187]
[1744746308244,27.35657338,127.94,127.9,10.15684187]
[1744746308447,27.35657338,127.94,127.89,21.49684187]
[1744746308448,37.51341525,127.94,127.89,21.49684187]
[1744746309623,28.80649073,127.93,127.89,21.49684187]
[1744746309823,18.64964886,127.93,127.89,21.49684187]
[1744746311845,7.81738586,127.92,127.89,21.49684187]
[1744746313246,7.81738586,127.92,127.89,11.34]
[1744746313537,7.81738586,127.92,127.89,21.49684187]
[1744746315849,7.81738586,127.92,127.89,11.34]
[1744746316051,17.97545015,127.9,127.86,0.063]
[1744746316218,28.80649073,127.89,127.86,0.063]
[1744746316835,18.64964886,127.89,127.86,0.063]
[1744746317551,28.80649073,127.89,127.86,0.063]
[1744746318033,7.81983109,127.88,127.86,0.063]
[1744746320552,17.97667296,127.88,127.86,0.063]
[1744746320931,7.81983109,127.88,127.86,0.063]
[1744746322257,7.81983109,127.88,127.86,1e-08]
[1744746322258,56.41789073,127.87,127.86,1e-08]
[1744746322457,97.04525821,127.87,127.86,1e-08]
[1744746322744,104.86570084,127.87,127.86,1e-08]
[1744746323753,44.64964886,127.85,127.84,1e-08]
[1744746323954,54.80649073,127.85,127.84,1e-08]
[1744746324767,62.62815674,127.85,127.84,1e-08]
[1744746325452,52.47131487,127.85,127.84,1e-08]
[1744746325952,7.82134566,127.86,127.84,1e-08]
[1744746326335,17.97818753,127.86,127.84,1e-08]
[1744746336342,7.82134566,127.86,127.84,1e-08]
[1744746336660,17.97818753,127.86,127.84,1e-08]
[1744746337861,7.82134566,127.86,127.84,1e-08]
[1744746338239,17.97818753,127.86,127.84,1e-08]
[1744746339366,17.97818753,127.86,127.81,1e-08]
[1744746339367,28.80649073,127.85,127.81,1e-08]
[1744746339573,54.80649073,127.82,127.81,1e-08]
[1744746340064,64.28469252,127.82,127.81,1e-08]
[1744746340749,38.64964886,127.81,127.78,0.063]
[1744746340945,95.43385821,127.8,127.78,0.063]
[1744746341156,95.57601978,127.8,127.79,1e-08]
[1744746341559,69.57601978,127.8,127.79,1e-08]
[1744746342157,77.40074591,127.8,127.79,1e-08]
[1744746342361,36.63121686,127.8,127.79,1e-08]
[1744746342658,26.47437499,127.8,127.79,1e-08]
[1744746342848,7.82227784,127.84,127.79,10.15684188]
[1744746343053,7.82227784,127.84,127.81,10.15684187]
[1744746343261,13.87923285,127.86,127.83,10.15684187]
[1744746343459,18.64964886,127.85,127.81,10.15684187]
[1744746343661,10.15684187,127.85,127.8,10.15684187]
[1744746343866,18.64964886,127.84,127.8,10.15684187]
[1744746344044,18.64964886,127.84,127.81,10.15684187]
[1744746344366,7.82288977,127.83,127.81,10.15684187]
[1744746344564,17.97973164,127.83,127.79,1e-08]
[1744746344768,17.97973164,127.83,127.79,10.15684188]
[1744746344769,7.82288977,127.83,127.79,10.15684188]
[1744746345165,7.82288977,127.83,127.8,15.86245485]
[1744746346772,7.82288977,127.83,127.79,1e-08]
[1744746347075,7.82288977,127.83,127.8,15.86245485]
[1744746347673,7.82288977,127.83,127.79,1e-08]
[1744746347853,7.82288977,127.83,127.8,15.86245485]
[1744746349568,18.64964886,127.82,127.79,1e-08]
[1744746349750,18.64964886,127.8,127.79,1e-08]
[1744746349950,34.51210371,127.8,127.79,1e-08]
[1744746351060,42.33682984,127.8,127.79,1e-08]
[1744746351661,48.58912984,127.8,127.79,1e-08]
[1744746353872,52.47437499,127.8,127.79,1e-08]
[1744746354079,1.6279,127.82,127.79,1e-08]
[1744746354080,18.64964886,127.81,127.79,1e-08]
[1744746355180,7.82472613,127.8,127.79,1e-08]
[1744746356379,42.33682984,127.8,127.79,1e-08]
[1744746357680,68.33682984,127.8,127.79,1e-08]
[1744746359881,52.47437499,127.8,127.79,1e-08]
[1744746360067,26.47437499,127.8,127.79,1e-08]
[1744746360267,33.82350179,127.82,127.79,15.86245486]
[1744746361078,7.82350179,127.82,127.79,15.86245486]
[1744746362307,44.64964886,127.83,127.79,15.86245486]
[1744746362308,52.47265633,127.83,127.81,15.86245485]
[1744746362582,26.47265633,127.83,127.8,15.86245485]
[1744746362880,61.89233561,127.83,127.79,15.86245486]
[1744746363082,46.02988076,127.83,127.79,1e-08]
[1744746363384,15.86245485,127.81,127.79,1e-08]
[1744746363580,7.82472613,127.8,127.79,1e-08]
[1744746363790,26.47437499,127.8,127.79,1e-08]
[1744746365884,42.33682984,127.8,127.79,1e-08]
[1744746368473,68.33682984,127.8,127.79,1e-08]
[1744746373273,33.82472613,127.8,127.79,1e-08]
[1744746374197,52.47437499,127.8,127.79,1e-08]
[1744746374498,68.33682984,127.8,127.79,1e-08]
[1744746379702,52.47437499,127.8,127.79,1e-08]
[1744746380379,68.33682984,127.8,127.79,1e-08]
[1744746382404,52.47437499,127.8,127.79,1e-08]
[1744746382607,7.82227784,127.84,127.79,15.86245486]
[1744746382787,18.64964886,127.83,127.8,15.86245485]
[1744746384502,7.82350179,127.82,127.79,1e-08]
[1744746386303,34.51210371,127.81,127.79,1e-08]
[1744746386804,7.82472613,127.8,127.79,1e-08]
[1744746388383,7.82315706,127.83,127.79,15.86245486]
[1744746388583,7.82315706,127.83,127.8,15.86245485]
[1744746389106,7.82315706,127.83,127.79,15.86245486]
[1744746389407,7.82315706,127.83,127.8,15.86245485]
[1744746390614,7.82315706,127.83,127.79,15.86245486]
[1744746390797,18.64964886,127.82,127.79,1e-08]
[1744746391190,18.64964886,127.82,127.79,15.86245486]
[1744746392610,7.82315706,127.83,127.8,15.86245485]
[1744746393590,33.82258991,127.84,127.81,15.86245485]
[1744746395308,18.67964886,127.86,127.82,15.86245485]
[1744746395492,18.67964886,127.86,127.83,15.86245485]
[1744746396396,26.50094754,127.86,127.82,15.86245485]
[1744746396930,7.85129868,127.86,127.83,15.86245485]
[1744746397218,7.85129868,127.86,127.84,15.86245485]
[1744746398989,0.03,127.86,127.85,15.86245485]
[1744746403104,0.03,127.86,127.82,15.86245485]
[1744746403301,15.89245485,127.86,127.81,1.6065]
[1744746403618,18.64964886,127.85,127.81,17.46895485]
[1744746403805,34.51210371,127.85,127.81,1.6065]
[1744746404189,34.51210371,127.85,127.81,17.46895485]
[1744746404390,7.82227784,127.84,127.81,17.46895485]
[1744746404835,15.86245485,127.82,127.79,1e-08]
[1744746404994,34.51210371,127.8,127.79,1e-08]
[1744746406616,42.33682984,127.8,127.79,1e-08]
[1744746409501,23.68718098,127.8,127.79,1e-08]
[1744746409708,42.33682984,127.8,127.79,1e-08]
[1744746411328,68.33682984,127.8,127.79,1e-08]
[1744746413235,52.47437499,127.8,127.79,1e-08]
[1744746415921,68.33682984,127.8,127.79,1e-08]
[1744746416732,52.47437499,127.8,127.79,1e-08]
[1744746417437,68.33682984,127.8,127.79,1e-08]
[1744746417829,52.47437499,127.8,127.79,1e-08]
[1744746418341,68.33682984,127.8,127.79,1e-08]
[1744746421543,52.47437499,127.8,127.79,1e-08]
[1744746421728,68.33682984,127.8,127.79,1e-08]
[1744746422247,52.47559971,127.78,127.77,1e-08]
[1744746422418,68.33805456,127.78,127.77,1e-08]
[1744746422613,18.64964886,127.77,127.76,1e-08]
[1744746422820,34.51210371,127.77,127.76,1e-08]
[1744746424437,42.33866706,127.77,127.76,1e-08]
[1744746424741,26.47621221,127.77,127.76,1e-08]
[1744746424928,42.33866706,127.77,127.76,1e-08]
[1744746425742,26.47621221,127.77,127.76,1e-08]
[1744746434152,20.0,127.6,127.55,0.0134284]
[1744746434453,1.0,127.67,127.57,15.86245485]
[1744746434454,26.0,127.62,127.57,15.86245485]
[1744746434625,26.0,127.62,127.55,0.0134284]
[1744746434955,26.0,127.62,127.58,15.86245485]
[1744746435255,41.86245485,127.62,127.55,15.87588325]
[1744746435457,15.86245485,127.58,127.55,0.0134284]
[1744746435624,15.86245485,127.57,127.55,0.0134284]
[1744746436025,23.70190295,127.56,127.55,0.0134284]
[1744746436554,7.8394481,127.56,127.55,0.0134284]
[1744746436726,23.70190295,127.56,127.55,0.0134284]
[1744746437331,33.33855091,127.56,127.55,0.0134284]
[1744746438157,53.33855091,127.56,127.55,0.0134284]
[1744746438332,78.83765372,127.56,127.55,0.0134284]
[1744746438537,48.58609536,127.56,127.55,0.0134284]
[1744746438852,59.33855091,127.56,127.55,0.0134284]
[1744746439556,58.83765372,127.56,127.55,0.0134284]
[1744746439734,79.58430098,127.56,127.55,0.0134284]
[1744746439937,85.71620098,127.56,127.55,0.0134284]
[1744746440463,95.88066716,127.56,127.55,0.0134284]
[1744746444161,114.67247759,127.56,127.55,0.0134284]
[1744746444757,44.64964886,127.53,127.49,0.03]
[1744746444940,44.14875167,127.5,127.49,0.03]
[1744746445140,18.64964886,127.5,127.49,0.03]
[1744746445353,30.91111344,127.55,127.49,0.03]
[1744746445555,51.49910281,127.53,127.49,0.03]
[1744746445751,25.49910281,127.51,127.49,0.03]
[1744746446153,18.64964886,127.5,127.49,0.03]
[1744746446458,26.49278611,127.5,127.49,0.03]
[1744746446963,51.99188892,127.5,127.49,0.03]
[1744746447952,18.64964886,127.48,127.41,1.5952]
[1744746448155,18.64964886,127.48,127.45,25.49910281]
[1744746448461,18.64964886,127.49,127.45,25.49910281]
[1744746449163,25.49910281,127.47,127.41,27.5952]
[1744746449459,25.49910281,127.48,127.43,25.49910281]
[1744746449666,25.49910281,127.49,127.44,25.49910281]
[1744746449866,33.84313725,127.5,127.45,25.49910281]
[1744746450054,59.34224006,127.5,127.45,25.49910281]
[1744746450241,33.84313725,127.5,127.45,25.49910281]
[1744746450442,33.84313725,127.5,127.46,25.49910281]
[1744746450767,59.34224006,127.5,127.45,36.79910281]
[1744746450960,25.49910281,127.48,127.45,11.3]
[1744746452069,7.84498313,127.47,127.45,11.3]
[1744746453763,7.84397196,127.49,127.45,36.79910281]
[1744746453945,33.84329288,127.5,127.46,25.49910281]
[1744746454271,59.34239569,127.5,127.45,36.79910281]
[1744746454573,40.34834449,127.54,127.48,25.49910281]
[1744746454747,40.34834449,127.54,127.49,25.49910281]
[1744746454748,7.84129224,127.53,127.49,25.49910281]
[1744746455064,26.0,127.53,127.5,25.49910281]
[1744746455276,26.0,127.53,127.49,25.49910281]
[1744746455969,26.0,127.53,127.5,25.49910281]
[1744746456346,33.84145779,127.53,127.5,25.49910281]
[1744746457762,25.49910281,127.52,127.45,11.3]
[1744746457952,51.49910281,127.5,127.45,36.79910281]
[1744746458465,25.49910281,127.49,127.45,11.3]
[1744746459273,15.95354346,127.49,127.45,11.3]
[1744746459471,41.95354346,127.5,127.45,11.3]
[1744746459775,41.95354346,127.5,127.45,27.25354346]
[1744746459945,7.84375245,127.49,127.45,27.25354346]
[1744746461272,7.84375245,127.49,127.45,11.3]
[1744746461477,33.84334862,127.5,127.45,35.09972545]
[1744746461775,33.84334862,127.5,127.46,15.95354346]
[1744746461974,26.0,127.5,127.46,15.95354346]
[1744746462170,26.0,127.5,127.47,15.95354346]
[1744746462481,26.0,127.5,127.45,19.14618199]
[1744746462482,49.79677791,127.5,127.45,27.25354346]
[1744746462977,49.79677791,127.5,127.45,35.09973899]
[1744746463477,49.79677791,127.5,127.45,27.25354346]
[1744746463772,7.84157757,127.53,127.46,0.14216157]
[1744746463977,7.84067743,127.54,127.51,15.95354346]
[1744746464147,33.84067743,127.54,127.51,15.95354346]
[1744746464349,33.84067743,127.54,127.47,1.6179]
[1744746464569,33.84067743,127.54,127.51,15.95354346]
[1744746467057,0.063,127.55,127.53,15.95354346]
[1744746467766,0.063,127.55,127.52,15.95354346]
[1744746467963,0.063,127.55,127.5,11.3]
[1744746467964,0.063,127.55,127.51,15.95354346]
[1744746468164,15.95354346,127.54,127.5,11.3]
[1744746468389,41.95354346,127.52,127.45,11.3]
[1744746468674,15.95354346,127.5,127.46,15.95354346]
[1744746468858,15.95354346,127.5,127.45,27.25354346]
[1744746469055,15.95354346,127.5,127.46,15.95354346]
[1744746469276,15.95354346,127.51,127.46,15.95354346]
[1744746469459,15.95354346,127.49,127.45,11.3]
[1744746469863,7.84436774,127.48,127.45,11.3]
[1744746470687,23.7979112,127.48,127.4,11.3]
[1744746470858,15.95354346,127.46,127.41,15.95354346]
[1744746471163,26.4940166,127.48,127.41,0.14216157]
[1744746471164,27.45528709,127.48,127.41,0.14216157]
[1744746471363,52.98173023,127.48,127.43,25.52644314]
[1744746474372,52.98173023,127.48,127.42,7.84799021]
[1744746474573,52.98173023,127.48,127.43,25.52644314]
[1744746476770,52.98173023,127.48,127.41,7.99083906]
[1744746477165,52.98173023,127.48,127.43,25.52644314]
[1744746477395,52.98173023,127.48,127.44,25.52644314]
[1744746477396,7.84436774,127.48,127.44,25.52644314]
[1744746481576,51.52644314,127.49,127.46,25.52644314]
[1744746481577,7.84404154,127.49,127.46,25.52644314]
[1744746481973,7.84404154,127.49,127.45,36.82644314]
[1744746482491,7.84404154,127.49,127.46,25.52644314]
[1744746483296,7.84313725,127.5,127.46,25.52644314]
[1744746483700,7.84313725,127.5,127.46,33.37178392]
[1744746483892,7.8427779,127.51,127.48,25.52644314]
[1744746484076,7.8427779,127.51,127.49,25.52644314]
[1744746484803,7.8427779,127.51,127.48,25.52644314]
[1744746484996,33.36922104,127.51,127.45,20.86609071]
[1744746485301,33.36922104,127.51,127.46,25.52644314]
[1744746485503,7.8427779,127.51,127.47,25.52644314]
[1744746486005,7.8427779,127.51,127.48,25.52644314]
[1744746486292,33.36922104,127.51,127.46,25.52644314]
[1744746486697,7.8427779,127.51,127.48,25.52644314]
[1744746487585,7.84208573,127.52,127.49,25.52644314]
[1744746487996,33.84154847,127.53,127.5,25.52644314]
[1744746488197,7.84154847,127.53,127.51,25.52644314]
[1744746489307,7.90335063,127.55,127.51,25.52644314]
[1744746489478,7.90335063,127.55,127.52,25.52644314]
[1744746489678,7.90335063,127.55,127.51,25.52644314]
[1744746489893,53.02995057,127.55,127.5,11.3]
[1744746490103,25.52644314,127.54,127.5,36.82644314]
[1744746490286,25.52644314,127.54,127.5,11.3]
[1744746490901,51.52644314,127.53,127.5,11.3]
[1744746491405,7.84190715,127.52,127.5,11.3]
[1744746494312,7.84155947,127.53,127.5,27.24283952]
[1744746494489,0.063,127.55,127.52,15.94283952]
[1744746495493,7.90306272,127.55,127.52,15.94283952]
[1744746495822,7.90306272,127.55,127.51,15.94283952]
[1744746497313,7.90306272,127.55,127.52,15.94283952]
[1744746497513,0.063,127.55,127.52,15.94283952]
[1744746498818,16.00583952,127.55,127.5,11.3]
[1744746499013,15.94283952,127.51,127.47,11.3]
[1744746499309,7.84436774,127.48,127.43,37.79685533]
[1744746499488,7.84436774,127.48,127.44,15.94283952]
[1744746499919,7.84436774,127.48,127.45,15.94283952]